Cogmind - Beta 15 @@@ ROGUE MODE // 2025.05.16 @ 20:17:20 Player: Palikka Result: Destroyed by K3-THA(R) with Subdweller Beam Cannon Performance ------------- Evolutions (0) 0 Regions Visited (2) 400 Robots Destroyed (25) 125 Value Destroyed (437) 437 Prototype IDs (3) 60 Alien Tech Used (0) 0 Bonus (0) 0 TOTAL SCORE: 1022 Bonus ------- None Cogmind --------- Core Integrity 0/250 Matter 300/300 Energy 100/100 System Corruption 1% Temperature Cool (9) Movement Treading (160) Location -10/Subcaves Parts ------- > --- POWER (1) -------- (None) > --- PROPULSION (2) --- Light Treads Light Treads > --- UTILITY (2) ------ Large Storage Unit > --- WEAPON (2) ------- Light Assault Rifle Light Assault Rifle > --- INVENTORY (15) --- Ion Engine Improved Heat Sink Huge Storage Unit High-capacity Matter Pod (146) Improved Terrain Scanner Terrain Scan Processor Seismic Detector Seismic Detector Light Armor Plating Light Armor Plating Beam Cannon Beam Cannon Beam Cannon Beam Cannon Light Assault Rifle Peak State ------------ > --- POWER ------------ Ion Engine > --- PROPULSION ------- Light Treads Light Treads > --- UTILITY ---------- Large Storage Unit Light Armor Plating > --- WEAPON ----------- Light Assault Rifle Light Assault Rifle > --- INVENTORY -------- Ion Engine Improved Heat Sink Huge Storage Unit Medium Matter Pod Improved Terrain Scanner Terrain Scan Processor Seismic Detector Seismic Detector Light Armor Plating Light Armor Plating Beam Cannon Beam Cannon Beam Cannon Beam Cannon Light Assault Rifle [Rating: 9] Favorites ----------- Power Ion Engine Engine Ion Engine Propulsion Light Treads Treads Light Treads Utility Light Armor Plating Device Seismic Detector Storage Medium Storage Unit Protection Light Armor Plating Weapon Light Assault Rifle Energy Gun Small Laser Ballistic Gun Light Assault Rifle Build | -11 -10 -10 ------- Run | Yrd Mat Sub Slots Evolved . | . . . Power . | . . . Propulsion . | . . . Utility . | . . . Weapon . | . . . Parts Attached 19 | 7 12 . Power 3 | 1 2 . Engine 3 | 1 2 . Core . | . . . Reactor . | . . . Propulsion 5 | 2 3 . Treads 5 | 2 3 . Leg . | . . . Wheel . | . . . Hover . | . . . Flight . | . . . Utility 6 | 2 4 . Device 1 | 1 . . Storage 4 | 1 3 . Processor . | . . . Hackware . | . . . Protection 1 | . 1 . Artifact . | . . . Weapon 5 | 2 3 . Energy Gun 1 | 1 . . Energy Cannon . | . . . Ballistic Gun 4 | 1 3 . Ballistic Cannon . | . . . Launcher . | . . . Special Weapon . | . . . Impact Weapon . | . . . Slashing Weapon . | . . . Piercing Weapon . | . . . Special Melee Weapon . | . . . Unidentified Prototypes . | . . . Parts Lost 5 | . 3 2 Power 2 | . 1 1 Propulsion 1 | . 1 . Utility 2 | . 1 1 Weapon . | . . . Highest Loss Streak 2 | . 1 2 To Critical Strikes . | . . . Average Backups 10 | 4 10 15 Power . | . . 1 Propulsion . | 3 . . Utility 6 | . 6 9 Weapon 2 | . 2 5 Tool/Special . | . . . Unused Backups 27 | . 13 14 Power 3 | . 2 1 Propulsion 4 | . 4 . Utility 14 | . 5 9 Weapon 6 | . 2 4 Tool/Special . | . . . Average Slot Usage (%) 99 | . 99 98 Engine 13 | . 14 12 Treads 27 | . 27 28 Device 5 | . 5 . Storage 14 | . 14 14 Protection 8 | . 8 14 Energy Gun 1 | . 1 . Ballistic Gun 26 | . 26 28 Peak Build Rating 9 | 7 9 9 Average Rating 8 | 5 8 8 On Entrance 5 | . 7 9 Naked Turns . | . . . Heaviest Build 30 | 11 30 30 Greatest Support 40 | 40 40 40 Greatest Overweight (x) 1 | . 1 . Average Overweight (x) . | . . . Largest Inventory Capacity 15 | 8 15 15 Average Capacity 11 | 7 11 15 Most Carried 15 | 8 15 15 Average Carried 10 | 4 10 15 Final Capacity 15 | 8 15 15 Final Carried 15 | 7 15 15 Class Distribution -------------------- 78% | Mutant 21% | Scavenger-Mutant Dominant Class ---------------- Mutant | -10/Materials Mutant | -10/Subcaves Resources | -11 -10 -10 ----------- Run | Yrd Mat Sub Matter Collected 760 | 202 558 . Remotely . | . . . Salvage Created 767 | 59 708 . Parts 54 | 7 47 . Haulers Intercepted 2 | . 2 . Recyclers Shooed 1 | . 1 . Parts Field Recycled . | . . . Retrieved Matter . | . . . Parts Self-Destructed . | . . . Prevented . | . . . Kills | -11 -10 -10 ------- Run | Yrd Mat Sub Combat Hostiles Destroyed 16 | . 16 . Guns 15 | . 15 . AOE 1 | . 1 . Classes Destroyed 7 | 1 6 . Tunneler 3 | 3 . . Hauler 2 | . 2 . Recycler 1 | . 1 . Operator 1 | . 1 . Watcher 2 | . 2 . Swarmer 9 | . 9 . Grunt 7 | . 7 . Best Kill Streak 6 | 3 6 . Combat Bots Only 3 | . 3 . Max Kills in Single Turn 2 | 2 1 . Gunslinging . | . . . Exploded 1 | . 1 . Melee . | . . . Uniques/NPCs Destroyed . | . . . Combat | -11 -10 -10 -------- Run | Yrd Mat Sub Hostile Shots Fired 124 | . 118 6 Missed 29 | . 27 2 Hits 95 | . 91 4 Projectile 95 | . 91 4 Critical Strikes 2 | . 2 . Damage Taken 1166 | . 1066 100 Core 258 | . 201 57 Absorbed by Shields . | . . . Core Remaining (%) 100 | 100 . . Volleys Fired 97 | 6 89 2 Largest 2 | 2 2 2 Hottest 60 | 60 60 40 Shots Fired 184 | 12 168 4 Gun 184 | 12 168 4 Cannon . | . . . Launcher . | . . . Special . | . . . Kinetic 162 | 6 152 4 Thermal 22 | 6 16 . Explosive . | . . . Electromagnetic . | . . . Robot Hit Streak 12 | 2 12 5 Robot Miss Streak 7 | 3 7 . Penetration Max . | . . . Secondary Targets 2 | . 2 . Max Gunslinging Chain 1 | . 1 . Shots Hit Robots 114 | 4 106 4 Core Hits 46 | 3 41 2 Critical Kills . | . . . Critical Parts Destroyed 1 | . 1 . Critical Strikes 1 | . 1 . Destroy 1 | . 1 . Melee Attacks . | . . . Impact . | . . . Slashing . | . . . Piercing . | . . . Sneak Attacks . | . . . Combat Hostiles . | . . . Follow-up Attacks . | . . . Damage Inflicted 1094 | 59 1000 35 Guns 929 | 59 835 35 Cannons . | . . . Explosions 165 | . 165 . Melee . | . . . Ramming . | . . . Kinetic 855 | 25 795 35 Thermal 239 | 34 205 . Explosive . | . . . Electromagnetic . | . . . Impact . | . . . Slashing . | . . . Piercing . | . . . Highest Corruption 1 | . 1 1 Average Corruption 1 | . 1 1 Corruption Purged . | . . . Corruption Blocked . | . . . Effects 14 | . 14 . Message Errors 4 | . 4 . Matter Fused 3 | . 3 . Heat Flow Errors 1 | . 1 . Energy Discharges 2 | . 2 . Data Loss (minor) 3 | . 3 . Weapon Failures 1 | . 1 . Overload Shots . | . . . Overflow Damage 32 | . 32 . Projectiles . | . . . Explosions 32 | . 32 . Melee . | . . . Knockbacks . | . . . Impact . | . . . Kinetic . | . . . Secondary . | . . . Self-Inflicted Damage 88 | . 88 . Shots 1 | . 1 . Rammed . | . . . Targets Rammed . | . . . Kicked . | . . . Crushed . | . . . Highest Temperature 151 | 40 151 . Average Temperature 19 | 24 18 . Received Heat Transfer 339 | . 312 27 Siege Activations . | . . . Martial Activations . | . . . Shielding Activations . | . . . Robots Disrupted . | . . . Combat Hostiles . | . . . Robots Corrupted . | . . . Combat Hostiles . | . . . Parts Fried . | . . . Impact Corruptions . | . . . Robots Melted . | . . . Combat Hostiles . | . . . Parts Melted . | . . . Heat Transferred 275 | 75 200 . Parts Sabotaged . | . . . Parts Stolen . | . . . Parts Stripped . | . . . Power Chain Reactions . | . . . Alert | -11 -10 -10 ------- Run | Yrd Mat Sub Maximum Alert Level . | . . . Low Security (%) 100 | 100 100 . Level 1 . | . . . Level 2 . | . . . Level 3 . | . . . Level 4 . | . . . Level 5 . | . . . High Security . | . . . Max Security . | . . . Peak Influence 127 | 15 127 . Initial 3 | . 3 . Average 31 | 2 33 . Influence Increases 534 | 15 519 . Destroy 0b10 Robot/C 320 | . 320 . Destroy 0b10 Robot/NC 40 | 15 25 . Destroy Leader 58 | . 58 . Successful Hack 33 | . 33 . Disable Machine 30 | . 30 . Destroy Structure 8 | . 8 . Lose Combat Pursuer 45 | . 45 . Influence Decreases 534 | 10 461 63 Entered New Map 33 | . 2 31 Time Decay 440 | 10 400 30 Lost Part 32 | . 30 2 Purge Threat 29 | . 29 . Squads Dispatched . | . . . Investigation . | . . . Extermination . | . . . Reinforcement . | . . . Assault . | . . . Garrison . | . . . Intercept . | . . . Searches Triggered . | . . . Construction Impeded . | . . . Haulers Reinforced . | . . . Active Scanning Responses . | . . . Cargo Convoy Interrupts . | . . . Stealth | -11 -10 -10 --------- Run | Yrd Mat Sub Distress Signals 3 | . 3 . Communications Jammed . | . . . Distress Signals . | . . . Times Spotted 31 | . 29 2 Peak Tracking Total 6 | . 6 2 Tactical Retreats 2 | . 2 . Traps | -11 -10 -10 ------- Run | Yrd Mat Sub Traps Triggered 2 | . 2 . Indirectly . | . . . Trap Hack Attempts . | . . . Triggered . | . . . Disarmed . | . . . Reprogrammed . | . . . Reused . | . . . Traps Extracted . | . . . Installed . | . . . Triggered . | . . . Machines | -11 -10 -10 ---------- Run | Yrd Mat Sub Machines Disabled 2 | . 2 . Max in Single Turn 2 | . 2 . Machines Repaired . | . . . Machines Dismantled . | . . . Machines Sabotaged . | . . . Overloaded Fab Kills . | . . . Hacking | -11 -10 -10 --------- Run | Yrd Mat Sub Machines Accessed 8 | . 8 . Terminals 8 | . 8 . Fabricators . | . . . Repair Stations . | . . . Recycling Units . | . . . Scanalyzers . | . . . Garrison Access . | . . . Total Hacks 27 | . 27 . Successful 18 | . 18 . Failed 9 | . 9 . Catastrophic . | . . . Database Lockouts . | . . . Manual 18 | . 18 . Terminals 27 | . 27 . Fabricators . | . . . Repair Stations . | . . . Recycling Units . | . . . Scanalyzers . | . . . Garrison Access . | . . . Terminal Hacks 11 | . 11 . Prototype ID Bank 3 | . 3 . Branch Access Points 1 | . 1 . Unreport Threat 2 | . 2 . Locate Traps 2 | . 2 . Zone Layout 3 | . 3 . Fabricator Hacks . | . . . Repair Station Hacks . | . . . Recycling Unit Hacks . | . . . Scanalyzer . | . . . Garrison Access Hacks . | . . . Unauthorized Hacks 7 | . 7 . Terminals 7 | . 7 . Track 3 | . 3 . Assimilate 1 | . 1 . Botnet 3 | . 3 . Fabricators . | . . . Repair Stations . | . . . Recycling Units . | . . . Scanalyzers . | . . . Garrison Access . | . . . Data Cores Recovered . | . . . Used . | . . . Hacking Detections 6 | . 6 . Full Trace Events . | . . . Feedback Events . | . . . Feedback Blocked . | . . . Robot Schematics Acquired . | . . . Robots Built . | . . . Authchips . | . . . Time . | . . . Total Robot Build Rating . | . . . Part Schematics Acquired . | . . . Parts Built . | . . . Authchips . | . . . Time . | . . . Total Part Build Rating . | . . . Parts Repaired . | . . . Time . | . . . Parts Recycled . | . . . Recycled Matter . | . . . Retrieved Matter . | . . . Retrieved Components . | . . . Parts Scanalyzed . | . . . Part Schematics Acquired . | . . . Parts Damaged . | . . . Bothacking | -11 -10 -10 ------------ Run | Yrd Mat Sub Used RIF Installer . | . . . Robots Hacked . | . . . Non-combat . | . . . Combat . | . . . Robot Hacks Applied . | . . . Relay Couplers Released . | . . . Fabnet Peak Effective % . | . . . Robots Rewired . | . . . Allies Hacked . | . . . Hacks Repelled . | . . . Allies | -11 -10 -10 -------- Run | Yrd Mat Sub Total Allies 1 | . 1 . Largest Group 1 | . 1 . Highest-Rated Group 10 | . 10 . Highest-Rated Ally 10 | . 10 . Total Orders . | . . . Ally Attacks . | . . . Total Damage . | . . . Kills . | . . . Allies Corrupted . | . . . Allies Melted . | . . . Intel | -11 -10 -10 ------- Run | Yrd Mat Sub Active Infowar (turns) 614 | 1 613 . Seismic 614 | 1 613 . Robot Analysis Total . | . . . Derelict Logs Recovered . | . . . Drone Launches . | . . . Drone Recoveries . | . . . Exploration | -11 -10 -10 ------------- Run | Yrd Mat Sub Turns Passed 1782 | 96 1603 83 Spaces Moved 891 | 42 804 45 Core 5 | 5 . . Treads 886 | 37 804 45 Legs . | . . . Wheels . | . . . Hover . | . . . Flight . | . . . Fastest Speed 50 | 50 160 160 Average Speed 160 | 146 161 160 Slowest Speed 240 | 160 240 160 Overloaded Moves . | . . . Propulsion Burnouts . | . . . Robots Hopped . | . . . Potential Cave-ins . | . . . Cave-ins Triggered . | . . . Exploration Rate (%) 36 | 4 99 6 Regions Visited 2 Branch Regions 1 Pre-discovered Areas . | . . . Known Exits Taken . | . . . Unknown Exits Taken 2 | 1 1 . Scrap Searched . | . . . Spaces Dug . | . . . Terrain Destroyed 12 | . 12 . Melee . | . . . Projectile . | . . . AOE 12 | . 12 . Terrain Rammed . | . . . Walls Destroyed . | . . . Machines Disabled . | . . . Actions | -11 -10 -10 --------- Run | Yrd Mat Sub Total 1100 | 63 985 52 Wait 38 | . 33 5 Move 889 | 41 803 45 Hop . | . . . Pick Up 34 | 9 25 . Fast Attach 7 | 5 2 . Attach 7 | 2 5 . Detach . | . . . Swap 6 | . 6 . Drop 22 | . 22 . Fire 97 | 6 89 2 Melee . | . . . Ram . | . . . Kick . | . . . Crush . | . . . Escape Stasis . | . . . Rewire . | . . . Trap . | . . . Miscellaneous . | . . . Route ------- -11/Scrapyard -10/Materials (discovered 6 exits: [*Mat x3] / *Min x2 / [*Sub]) -10/Subcaves History --------- Turn | Location | Event 17 | -11/Scrapyard | Discovered new exit (range 16) 97 | -11/Scrapyard | Entered Materials 311 | -10/Materials | Build established: Mutant 595 | -10/Materials | Core integrity fell below 50% 788 | -10/Materials | Discovered new exit (range 3) 840 | -10/Materials | Discovered new exit (range 5) 919 | -10/Materials | Discovered new exit (range 15) 1133 | -10/Materials | Build established: Scavenger-Mutant 1188 | -10/Materials | Core integrity fell below 20% 1285 | -10/Materials | Discovered new exit (range 11) 1365 | -10/Materials | Discovered new exit (range 8) 1444 | -10/Materials | Build established: Mutant 1544 | -10/Materials | Discovered new exit (range 16) 1566 | -10/Materials | Identified exit to Mines 1700 | -10/Materials | Entered Subcaves 1783 | -10/Subcaves | Destroyed by K3-THA(R) with Subdweller Beam Cannon Last Messages --------------- 01544_ EXIT=FOUND 01566_ Connecting with Terminal... >>Prototypes Downloading prototype IDs... Imp. Assault Rifle Adv. Beam Cannon >>Access(Branch) Found 2 branch access points: (36,37) Mines (60,42) Mines Map updated. 01644_ K-01 Serf cleans the Recycling Unit. 01648_ K-01 Serf cleans the Fusion Modulator. 01648_ K-01 Serf cleans the Recycling Unit. LOCATION=UNKNOWN AMBIENT_HEAT=-10 GOAL=ESCAPE 01746_ V8-K2S(u) builds Twisted Machinery. 01779_ Ion Engine destroyed. 01782_ Lgt. Armor Plating destroyed. Map ----- +----------------------------------------------------+ | ?????????????????????????????????????????????????? | | ?????????????????????????????????????????????????? | | ?????????????????????????????????????????????????? | | ?????????????????????????????????????????????????? | | ?????????????????????????????????????????????????? | | ?????????????????????????????????????????????????? | | ?????????????????????????????????????????????????? | | ?????????????????????????????????????????????????? | | ?????????????????????????????????????????????????? | | ?????????????????????????????????????????????????? | | ?????????????????????????????????????????????????? | | ?????????????????????????????????????????????????? | | ?????????????????????????????????????????????????? | | ?????????????????????????????????????????????????? | | ?????????????????????????????????????????????????? | | ???????????????????????????? #??????????????????? | | ???????????????????????????#""#??????????????????? | | ???????????????????????????#""##?????????????????? | | ??????????????????????????? "##????????????????? | | ???????????????????????????" " ##???????????????? | | ??????????????????????????? " "#???????????????? | | ????????????????# ???##????# "#???????????????? | | ????????????????# ## ???# "#???????????????? | | ????????????????# #?## "#???????????????? | | ????????????????# ## R #????????????????? | | ?????????????????# @ R ###????????????????? | | ?????????????????# ##??????????????????? | | ????????????????# ### ####????????????????? | | ????????????????# #??## #????????????????? | | ????????????????## ???## #????????????????? | | ?????????????????# ???## ##????????????????? | | ?????????????????# #???# ##?????????????????? | | ?????????????????## #????# #???###????????????? | | ??????????????????###?????# ##?# #????????????? | | ?????????????????????????## ## #????????????? | | ?????????????????????????# #????????????? | | ?????????????????????????# ##????????????? | | ?????????????????????????## ##????????????? | | ??????????????????????????## "" #????????????? | | ???????????????????????###?# ## #????????????? | | ???????????????????????# ## ##? #????????????? | | ??????????????????????## ### #????????????? | | ?????????????????????## "" #????????????? | | ????????????????????## " #????????????? | | ????????????????????# ##????????????? | | ????????????????????## ### #?????????????? | | ?????????????????????#???##### ##?????????????? | | ????????????????????###??????## ##??????????????? | | ????????????????????# #####?## ###?????????????? | | ????????????????????# ## ### #?????????????? | +----------------------------------------------------+ Best States ------------- Heat Dissipation 25 Energy Generation 10 Energy Capacity 250 Matter Stores 300 Matter Capacity 300 Sight Range 16 Terrain Scan Density 10 Armor Coverage 150 Evasion (%) 40 Recoil Reduction 2 Item Schematics ----------------- None Robot Schematics ------------------ None Fabricated ------------ Nothing Repaired ---------- Nothing Alien Tech Used ----------------- None Achievements -------------- None Challenges ------------ None Game ------ Seed AntimatterGravmagNukerbomber Manual? 0 Play Time 00:12:37 Cumulative 372.0 hours Start 2025.05.16 @ 20:04:53 End 2025.05.16 @ 20:17:20 Sessions 1 Manual Loads 0 Difficulty Rogue Special Mode None Game No. 441 Rogue 441 Adventurer 0 Explorer 0 Win Type - Total 37 Types 27/0/7/3/0/0/0/0/0/0 Lore% 60 Gallery% 69 Achievement% 61 Wizard Run 0 Options --------- Layout 0 ASCII 0 Keyboard 1 Movement Numpad Keybinds 0 Fullscreen 1 Font 24/Smallcaps Map View 76x50 Zoom Use 0% Tactical HUD 1 Map Filters NONE Filters NONE Steam 1 RUN: f66dc215-b6fa-4b5a-910d-6a0c7f1e0060